bitfinex-derivatives/quotes_ETHF0:USTF0_20260120
["timestamp","ask_amount","ask_price","bid_price","bid_amount"]
[1768878611446,0.15692,3188.3,3187.2,1.18156219]
[1768878611645,0.15692,3188.3,3187.2,4.58409718]
[1768878612253,0.15692,3188.3,3187.2,3.40253499]
[1768878612456,0.15692,3188.3,3187.2,4.58409718]
[1768878615557,0.15692,3188.3,3186.8,0.00313414]
[1768878615558,0.15692,3188.3,3186.9,3.65456219]
[1768878616458,0.15692,3188.3,3186.9,7.05709718]
[1768878617455,0.15692,3188.3,3186.9,4.58409718]
[1768878618958,1.18156219,3188.1,3186.9,3.40253499]
[1768878619148,1.18156219,3187.8,3186.8,0.00313414]
[1768878619351,1.18156219,3187.5,3186.8,0.00313414]
[1768878619759,1.18156219,3187.7,3186.8,0.00313414]
[1768878620558,0.15694,3187.9,3186.8,0.00313414]
[1768878620861,1.18156219,3187.7,3186.8,0.00313414]
[1768878624064,3.64184522,3187.9,3186.8,0.00313414]
[1768878624363,4.82340741,3187.9,3186.8,0.00313414]
[1768878625866,1.18156219,3187.7,3186.8,0.00313414]
[1768878628372,0.15694,3187.9,3186.8,0.00313414]
[1768878628775,4.63934507,3188.3,3186.8,0.00313414]
[1768878628972,0.83310959,3188.2,3186.8,0.00313414]
[1768878629268,0.83310959,3188.1,3186.8,0.00313414]
[1768878629476,0.83310959,3188.0,3186.8,0.00313414]
[1768878629771,0.83310959,3188.0,3185.0,10.61106993]
[1768878629772,1.92595201,3186.8,3185.0,10.61106993]
[1768878629972,1.18156219,3185.8,3184.5,3.29800215]
[1768878630368,1.18156219,3186.1,3184.5,3.29800215]
[1768878630666,1.18156219,3185.8,3184.5,3.30045719]
[1768878631567,0.00312606,3186.1,3184.7,4.47956434]
[1768878631873,0.00312606,3186.1,3184.8,3.29800215]
[1768878633680,0.00312606,3186.1,3184.8,4.47956434]
[1768878633976,0.00312606,3186.1,3184.9,3.29800215]
[1768878634975,1.96295535,3186.1,3184.5,3.30045719]
[1768878635272,1.18156219,3186.0,3184.5,3.30045719]
[1768878635576,1.18156219,3185.8,3184.5,3.30045719]
[1768878635767,1.18156219,3185.8,3184.5,4.48201938]
[1768878636266,1.18468825,3186.1,3184.5,4.48201938]
[1768878636467,0.00312606,3186.1,3184.6,3.29800215]
[1768878638272,0.00312606,3186.1,3184.9,3.29800215]
[1768878638474,0.00312606,3186.1,3184.5,0.00245504]
[1768878638475,0.00312606,3186.1,3185.2,3.29800215]
[1768878638775,1.18468825,3186.1,3184.7,2.351]
[1768878638982,1.18468825,3186.1,3184.8,3.29800215]
[1768878639582,0.00312606,3186.1,3184.8,3.29800215]
[1768878641881,0.00312606,3186.1,3185.0,3.29800215]
[1768878642182,0.00312606,3186.1,3184.6,3.54762743]
[1768878642585,0.00312606,3186.1,3184.9,3.54762743]
[1768878643477,0.00312606,3186.1,3184.5,1.18401723]
[1768878643478,0.00312606,3186.1,3185.2,3.54762743]
[1768878646281,0.00312606,3186.1,3184.8,3.54762743]
[1768878646486,1.18156219,3186.0,3184.8,3.54762743]
[1768878647072,1.18156219,3185.7,3184.5,3.55008247]
[1768878647888,0.15703,3186.0,3184.5,3.55008247]
[1768878648182,1.18156219,3185.7,3184.5,3.55008247]
[1768878649288,1.33859219,3186.0,3184.5,3.55008247]
[1768878649983,1.33859219,3186.0,3184.7,4.72918962]
[1768878650587,0.15703,3186.0,3184.8,3.54762743]
[1768878651993,0.00312606,3186.1,3184.8,3.54762743]
[1768878654091,0.00312606,3186.1,3185.1,3.36681319]
[1768878658198,0.8757085,3186.0,3185.1,3.36681319]
[1768878658399,0.00312606,3186.1,3185.1,3.36681319]
[1768878658698,0.8757085,3186.0,3185.1,3.36681319]
[1768878658892,0.00312606,3186.1,3185.1,3.36681319]
[1768878659603,1.12737654,3186.4,3185.1,3.36681319]
[1768878659798,0.157,3186.6,3185.3,3.36681319]
[1768878660701,0.15963422,3186.6,3185.3,3.36681319]
[1768878668402,0.00263422,3186.6,3185.3,3.36681319]
[1768878675905,1.12737654,3187.5,3185.3,3.36681319]
[1768878676106,0.15698,3187.1,3185.3,3.36681319]
[1768878676302,1.0225066,3187.0,3185.4,3.36681319]
[1768878676506,0.8655266,3186.9,3185.4,3.36681319]
[1768878676712,0.15698,3187.0,3185.4,3.36681319]
[1768878676913,0.86544812,3186.9,3185.4,3.36681319]
[1768878677113,0.15975421,3187.0,3185.4,3.36681319]
[1768878677307,0.86545653,3186.9,3185.4,3.36681319]
[1768878677507,0.15975421,3187.0,3185.4,3.36681319]
[1768878677707,0.86545374,3186.9,3185.4,3.36681319]
[1768878677917,0.15975421,3187.0,3185.4,3.36681319]
[1768878678119,0.86545313,3186.9,3185.4,3.36681319]
[1768878678312,0.15975421,3187.0,3185.4,3.36681319]
[1768878678504,0.86557588,3186.9,3185.4,3.36681319]
[1768878678708,0.15975421,3187.0,3185.4,3.36681319]
[1768878678915,0.86557608,3186.9,3185.4,3.36681319]
[1768878679117,0.15975421,3187.0,3185.4,3.36681319]
[1768878679308,0.86574672,3186.9,3185.4,3.36681319]
[1768878679508,0.15975421,3187.0,3185.4,3.36681319]
[1768878679817,0.86574654,3186.9,3185.4,3.36681319]
[1768878680008,0.15975421,3187.0,3185.4,3.36681319]
[1768878680202,0.8657101,3186.9,3185.4,3.36681319]
[1768878680403,0.15975421,3187.0,3185.6,3.36681319]
[1768878683524,0.00277421,3187.0,3185.6,3.36681319]
[1768878684522,0.00277421,3187.0,3185.6,4.55041689]
[1768878684717,0.86618061,3186.9,3185.6,3.36681319]
[1768878684921,0.00277421,3187.0,3185.6,3.36681319]
[1768878684922,0.86618061,3186.8,3185.6,3.36681319]
[1768878685113,0.00277421,3187.0,3185.6,3.36681319]
[1768878685312,0.86904861,3186.9,3185.6,3.36681319]
[1768878685513,0.86904861,3186.8,3185.6,3.36681319]
[1768878685823,0.86907581,3186.7,3185.6,3.36681319]
[1768878686021,0.00277421,3187.0,3185.6,3.36681319]
[1768878686222,0.86907573,3186.9,3185.6,3.36681319]
[1768878686422,0.86907573,3186.8,3185.6,3.36681319]
[1768878686622,0.86907573,3186.7,3185.6,3.36681319]
[1768878686824,0.00277421,3187.0,3185.6,3.36681319]
[1768878687024,0.86923865,3186.9,3185.6,3.36681319]
[1768878687220,0.86923865,3186.8,3185.6,3.36681319]
[1768878687424,0.00277421,3187.0,3185.6,3.36681319]
[1768878688219,1.12737654,3187.5,3185.6,3.36681319]
[1768878688630,1.12737654,3187.5,3185.8,3.38643369]
[1768878688830,0.86942747,3187.4,3185.8,3.38643369]
[1768878689020,0.86942747,3187.3,3185.8,3.38643369]
[1768878689220,0.00327371,3187.3,3186.1,1.1836037]
[1768878689428,1.12737654,3187.8,3186.2,3.38643369]
[1768878690128,1.9966332,3187.9,3186.2,3.38643369]
[1768878690330,0.86925666,3187.8,3186.2,3.38643369]
[1768878690532,0.86925666,3187.7,3186.2,3.38643369]
[1768878690737,0.86925666,3187.6,3186.2,3.38643369]
[1768878690931,0.86925666,3187.5,3186.2,3.38643369]
[1768878691132,1.1298552,3187.9,3186.2,3.38643369]
[1768878691324,0.86869114,3187.8,3186.2,3.38643369]
[1768878691527,0.86869114,3187.7,3186.2,3.38643369]
[1768878691824,0.86869114,3187.6,3186.2,3.38643369]
[1768878692025,0.86869114,3187.5,3186.2,3.38643369]
[1768878692226,1.1298552,3187.9,3186.2,3.38643369]
[1768878692424,0.86845877,3187.8,3186.2,3.38643369]
[1768878692629,0.86845877,3187.7,3186.2,3.38643369]
[1768878692831,0.86845877,3187.6,3186.2,3.38643369]
[1768878693031,1.1298552,3187.9,3186.2,3.38643369]
[1768878693032,0.86845877,3187.5,3186.2,3.38643369]
[1768878693233,0.00247866,3187.9,3186.2,3.38643369]
[1768878693434,0.86828685,3187.8,3186.2,3.38643369]
[1768878693738,0.86828685,3187.7,3186.2,3.38643369]
[1768878694036,0.86828685,3187.6,3186.2,3.38643369]
[1768878694233,0.00247866,3187.9,3186.3,3.38643369]
[1768878694432,0.86814478,3187.8,3186.3,3.38643369]
[1768878694633,0.86814478,3187.7,3186.3,3.38643369]
[1768878694936,0.00247866,3187.9,3186.3,3.38643369]
[1768878695136,0.86811615,3187.8,3186.3,3.38643369]
[1768878695341,0.86811615,3187.7,3186.3,3.38643369]
[1768878695543,0.00247866,3187.9,3186.3,3.38643369]
[1768878695737,0.87062226,3187.8,3186.3,3.38643369]
[1768878696039,0.87062226,3187.7,3186.3,3.38643369]
[1768878696233,0.00247866,3187.9,3186.3,3.38643369]
[1768878696434,0.87046861,3187.8,3186.3,3.38643369]
[1768878696635,0.87046861,3187.7,3186.3,3.38643369]
[1768878696835,0.00247866,3187.9,3186.3,3.38643369]
[1768878697034,0.87046764,3187.8,3186.3,3.38643369]
[1768878697235,0.87046764,3187.7,3186.3,3.38643369]
[1768878697537,0.00247866,3187.9,3186.3,3.38643369]
[1768878697737,0.87035178,3187.8,3186.3,3.38643369]
[1768878697937,0.87035178,3187.7,3186.3,3.38643369]
[1768878698241,0.00247866,3187.9,3186.3,3.38643369]
[1768878698438,0.87026451,3187.8,3186.3,3.38643369]
[1768878698640,0.00247866,3187.9,3186.3,3.38643369]
[1768878698942,0.87026472,3187.8,3186.3,3.38643369]
[1768878699138,0.00247866,3187.9,3186.3,3.38643369]
[1768878699444,0.87020664,3187.8,3186.3,3.38643369]
[1768878699641,0.00247866,3187.9,3186.3,3.38643369]
[1768878699850,0.87020653,3187.8,3186.3,3.38643369]
[1768878700044,0.00247866,3187.9,3186.3,3.38643369]
[1768878700342,0.87018063,3187.8,3186.3,3.38643369]
[1768878700545,0.00247866,3187.9,3186.3,3.38643369]
[1768878700739,0.87017907,3187.8,3186.3,3.38643369]
[1768878700938,0.00247866,3187.9,3186.3,3.38643369]
[1768878701138,0.87017757,3187.8,3186.3,3.38643369]
[1768878701339,0.00247866,3187.9,3186.3,3.38643369]
[1768878701543,1.12737654,3188.3,3187.0,3.38643369]
[1768878701741,1.12737654,3188.6,3187.0,3.38643369]
[1768878702538,0.00318461,3188.6,3187.0,3.38934006]
[1768878707146,0.15691,3188.5,3187.0,3.38934006]
[1768878708750,0.15692,3188.3,3187.0,3.38934006]
[1768878711455,0.15693,3188.1,3187.0,0.00290637]
[1768878714265,1.0229972,3188.0,3187.0,0.00290637]
[1768878714465,0.15694,3188.0,3187.0,0.00290637]
[1768878714868,1.18254492,3187.9,3187.0,0.00290637]
[1768878716564,1.33948492,3187.9,3187.0,0.00290637]
[1768878716759,1.18254492,3187.5,3187.0,0.00290637]
[1768878717070,1.12737654,3188.2,3187.0,3.46056967]
[1768878717267,1.18254492,3188.0,3187.0,3.46056967]
[1768878718467,1.18254492,3188.2,3187.0,3.46056967]
[1768878718667,0.86735563,3188.1,3187.0,3.46056967]
[1768878718873,1.18254492,3188.2,3187.0,3.46056967]
[1768878719077,0.86737839,3188.1,3187.0,3.46056967]
[1768878719276,1.18254492,3188.2,3187.0,3.46056967]
[1768878719571,0.86742814,3188.1,3187.0,3.46056967]
[1768878719773,1.18254492,3188.2,3187.0,3.46056967]
[1768878719968,0.86742886,3188.1,3187.0,3.46056967]
[1768878720168,1.18254492,3188.2,3187.0,3.46056967]
[1768878720371,0.86748524,3188.1,3187.0,3.46056967]
[1768878720567,0.15692,3188.3,3187.0,3.46056967]
[1768878720766,0.86748498,3188.2,3187.0,3.46056967]
[1768878720966,0.86748498,3188.1,3187.5,1.18254492]
[1768878721163,1.13056115,3188.6,3187.5,4.64285737]
[1768878721475,0.86750112,3188.5,3187.5,4.64285737]
[1768878721671,0.86750112,3188.4,3187.5,3.46031245]
[1768878721871,0.86750112,3188.3,3187.5,3.46031245]
[1768878722067,0.86750112,3188.2,3187.1,3.46031245]
[1768878722273,2.05004564,3188.1,3187.1,3.46031245]
[1768878722573,1.18254492,3188.1,3187.1,3.46031245]
[1768878724370,1.18254492,3188.4,3187.1,3.46031245]
[1768878724571,0.86769221,3188.3,3187.1,3.46031245]
[1768878724871,0.86769221,3188.2,3187.1,3.46031245]
[1768878725070,0.86769221,3188.1,3187.1,3.46031245]
[1768878725270,1.18254492,3188.4,3187.1,3.46031245]
[1768878725474,1.18254492,3188.1,3187.1,3.46031245]
[1768878726169,1.18254492,3188.1,3187.0,0.00025722]
[1768878727566,1.18254492,3187.8,3187.0,0.00025722]
[1768878730181,1.18254492,3188.1,3187.0,0.00025722]
[1768878730373,0.86833751,3188.0,3187.0,3.46056967]
[1768878730575,0.86833751,3187.9,3187.0,3.46056967]
[1768878730882,0.15693,3188.2,3187.0,3.46056967]
[1768878731081,0.86833257,3188.1,3187.0,3.46056967]
[1768878731282,0.86833257,3188.0,3187.0,3.46056967]
[1768878731579,0.86833257,3187.9,3187.0,3.46056967]
[1768878731777,0.86833257,3187.8,3187.0,3.46056967]
[1768878731973,1.28430654,3188.2,3187.0,3.46056967]
[1768878732169,0.8678873,3188.1,3187.0,3.46056967]
[1768878732374,0.8678873,3188.0,3187.0,3.46056967]
[1768878732574,0.8678873,3187.9,3187.0,3.46056967]
[1768878732779,0.8678873,3187.8,3187.0,3.46056967]
[1768878732984,1.18254492,3188.1,3187.0,3.46056967]
[1768878733180,0.86788295,3188.0,3187.0,3.46056967]
[1768878733382,0.86788295,3187.9,3187.0,3.46056967]
[1768878733581,0.86788295,3187.8,3187.0,3.46056967]
[1768878733785,1.28430654,3188.2,3187.0,3.46056967]
[1768878733985,0.86788022,3188.1,3187.0,3.46056967]
[1768878734182,0.86788022,3188.0,3187.0,3.46056967]
[1768878734378,0.86788022,3187.9,3187.0,3.46056967]
[1768878734578,0.86788022,3187.8,3187.0,3.46056967]
[1768878734779,1.28430654,3188.2,3187.0,3.46056967]
[1768878734985,0.86787915,3188.1,3187.0,3.46056967]
[1768878735181,0.86787915,3188.0,3187.0,3.46056967]
[1768878735382,0.86787915,3187.9,3187.0,3.46056967]
[1768878735581,1.28430654,3188.2,3187.0,3.46056967]
[1768878735787,0.86787591,3188.1,3187.0,3.46056967]
[1768878735975,0.86787591,3188.0,3187.0,3.46056967]
[1768878736179,0.86787591,3187.9,3187.0,3.46056967]
[1768878736386,0.86787951,3187.8,3187.0,3.46056967]
[1768878736588,0.15693,3188.2,3187.0,3.46056967]
[1768878736783,0.86787201,3188.1,3187.1,3.46031245]
[1768878736981,0.86787201,3188.0,3187.1,3.46031245]
[1768878737182,0.86787201,3187.9,3187.1,3.46031245]
[1768878737381,0.15693,3188.2,3187.1,3.46031245]
[1768878737583,0.86787538,3188.1,3187.1,3.46031245]
[1768878737782,0.86787538,3188.0,3187.1,3.46031245]
[1768878737984,0.86787538,3187.9,3187.1,3.46031245]
[1768878738185,1.12737654,3188.3,3187.1,3.46031245]
[1768878738384,1.99520707,3188.3,3187.1,3.46031245]
[1768878738584,0.86783053,3188.2,3187.1,3.46031245]
[1768878738778,0.86783053,3188.1,3187.1,3.46031245]
[1768878738987,0.86783053,3188.0,3187.1,3.46031245]
[1768878739188,1.12737654,3188.4,3187.1,3.46031245]
[1768878739492,0.8677983,3188.3,3187.1,3.46031245]
[1768878739792,0.8677983,3188.2,3187.1,3.46031245]
[1768878739983,1.18254492,3188.4,3187.1,3.46031245]
[1768878740186,0.86770694,3188.3,3187.1,3.46031245]
[1768878740483,1.18254492,3188.4,3187.1,3.46031245]
[1768878740484,0.86770694,3188.2,3187.1,3.46031245]
[1768878740683,1.18254492,3188.4,3187.1,3.46031245]
[1768878740890,0.86762148,3188.3,3187.1,3.46031245]
[1768878741190,0.86762148,3188.2,3187.1,3.46031245]
[1768878741391,2.31310607,3188.6,3187.1,3.46031245]
[1768878741591,0.86754843,3188.5,3187.1,3.46031245]
[1768878741793,0.86754843,3188.4,3187.1,3.46031245]
[1768878741993,0.86754843,3188.3,3187.1,3.46031245]
[1768878742184,0.86754843,3188.2,3187.1,3.46031245]
[1768878742384,2.31310607,3188.6,3187.1,3.46031245]
[1768878742584,0.86749627,3188.5,3187.1,3.46031245]
[1768878742791,0.86749627,3188.4,3187.1,3.46031245]
[1768878743091,0.86749627,3188.3,3187.1,3.46031245]
[1768878743290,0.86749627,3188.2,3187.1,3.46031245]
[1768878743483,2.31310607,3188.6,3187.1,3.46031245]
[1768878743687,0.86745494,3188.5,3187.1,3.46031245]
[1768878743992,0.86745494,3188.4,3187.1,3.46031245]
[1768878744194,0.86745494,3188.3,3187.2,4.73055108]
[1768878744388,0.86745494,3188.2,3187.2,4.73055108]
[1768878744592,1.13056115,3188.6,3187.2,4.73055108]
[1768878744889,1.13056115,3188.6,3187.3,3.54800616]
[1768878744890,0.86742321,3188.5,3187.3,3.54800616]
[1768878745094,0.86742321,3188.4,3187.3,3.54800616]
[1768878745294,0.86742321,3188.3,3187.3,3.54800616]
[1768878745486,0.86742321,3188.2,3187.3,3.54800616]
[1768878745687,1.13056115,3188.6,3187.3,3.54800616]
[1768878745887,0.86743013,3188.5,3187.3,3.54800616]
[1768878746086,0.86743013,3188.4,3187.3,3.54800616]
[1768878746292,0.86743013,3188.3,3187.3,3.54800616]
[1768878746594,0.86743013,3188.2,3187.3,3.54800616]
[1768878746795,1.13056115,3188.6,3187.3,3.54800616]
[1768878746996,0.86745057,3188.5,3187.3,3.54800616]
[1768878747195,0.86745057,3188.4,3187.3,3.54800616]
[1768878747387,0.86745057,3188.3,3187.3,3.54800616]
[1768878747587,0.86745057,3188.2,3187.3,3.54800616]
[1768878747890,1.13056115,3188.6,3187.3,3.54800616]
[1768878748090,1.18254492,3188.4,3187.0,0.00025722]
[1768878748290,0.86751786,3188.3,3187.1,2.423]
[1768878748488,0.86751786,3188.2,3187.1,2.423]
[1768878748692,0.86751786,3188.1,3187.1,2.423]
[1768878748888,1.18254492,3188.4,3187.1,2.423]
[1768878749091,0.8675518,3188.3,3187.1,2.423]
[1768878749292,0.8675518,3188.2,3187.1,2.423]
[1768878749588,0.8675518,3188.1,3187.1,2.423]
[1768878749788,1.18254492,3188.4,3187.0,3.54826338]
[1768878749992,0.86754244,3188.3,3187.0,3.54826338]
[1768878750193,0.86754244,3188.2,3187.0,3.54826338]
[1768878750396,0.86754244,3188.1,3187.0,3.54826338]
[1768878750588,1.18254492,3188.4,3187.0,3.54826338]
[1768878750798,0.86755295,3188.3,3187.0,3.54826338]
[1768878750990,0.86755295,3188.2,3187.0,3.54826338]
[1768878751195,0.86755295,3188.1,3187.0,3.54826338]
[1768878751590,1.18254492,3188.0,3187.0,3.54826338]
[1768878751991,1.18254492,3188.0,3187.0,0.00025722]
[1768878753696,1.18254492,3187.8,3187.0,0.00025722]
[1768878753903,1.18254492,3187.5,3186.3,5.97000616]
[1768878754198,1.18254492,3187.2,3186.3,3.54800616]
[1768878754793,1.18254492,3187.2,3186.3,3.55198761]
[1768878754995,1.18254492,3187.5,3186.3,3.55198761]
[1768878755192,0.86731355,3187.4,3186.3,3.55198761]
[1768878755403,1.18254492,3187.5,3186.3,3.55198761]
[1768878755706,0.86702265,3187.4,3186.3,3.55198761]
[1768878755998,0.15695,3187.7,3186.3,3.55198761]
[1768878756203,0.86702331,3187.6,3186.6,3.54800616]
[1768878756402,0.86702331,3187.5,3186.6,3.54800616]
[1768878756597,0.86702331,3187.4,3186.6,3.54800616]
[1768878756795,0.15695,3187.7,3186.6,3.54800616]
[1768878756998,0.86678581,3187.6,3186.6,3.54800616]
[1768878757199,0.86678581,3187.5,3186.6,3.54800616]
[1768878757404,0.15695,3187.7,3186.6,3.54800616]
[1768878757600,0.00318461,3188.6,3187.6,1.18254492]
[1768878757798,0.00318461,3188.6,3187.1,4.73055108]
[1768878758893,3.30632716,3188.6,3187.1,3.54800616]
[1768878759101,1.18254492,3188.5,3187.1,3.54800616]
[1768878761509,1.18254492,3188.2,3186.6,3.54800616]
[1768878761701,1.18254492,3188.2,3186.7,1.18254492]
[1768878761902,1.18254492,3188.2,3186.7,4.73055108]
[1768878762899,1.18254492,3188.2,3186.8,1.18254492]
[1768878766107,1.18254492,3188.2,3186.7,3.54800616]
[1768878766298,1.18254492,3188.2,3186.8,1.18254492]
[1768878769008,0.15692,3188.4,3186.8,1.18254492]
[1768878769208,1.18254492,3188.3,3186.8,4.61415063]
[1768878769806,0.84971223,3188.2,3186.9,3.43160571]
[1768878770007,0.15692,3188.4,3186.9,3.43160571]
[1768878770008,0.15692,3188.4,3187.1,1.18254492]
[1768878770207,0.84969811,3188.3,3187.1,1.18254492]
[1768878770409,0.84969811,3188.2,3187.1,1.18254492]
[1768878770608,0.15692,3188.4,3187.1,1.18254492]
[1768878770798,0.84971544,3188.3,3187.1,1.18254492]
[1768878771002,0.84971544,3188.2,3187.1,1.18254492]
[1768878771202,0.15692,3188.4,3187.1,1.18254492]
[1768878771406,0.84971544,3188.3,3187.1,1.18254492]
[1768878771610,0.84971544,3188.2,3187.1,1.18254492]
[1768878771810,0.15692,3188.4,3187.1,1.18254492]
[1768878772012,0.84973307,3188.3,3187.1,1.18254492]
[1768878772210,0.84973307,3188.2,3187.1,1.18254492]
[1768878772413,0.84977056,3188.1,3187.1,1.18254492]
[1768878772611,0.15692,3188.4,3187.1,1.18254492]
[1768878772815,0.84975426,3188.3,3187.1,1.18254492]
[1768878773111,0.84975426,3188.2,3187.1,1.18254492]
[1768878773314,0.84977737,3188.1,3187.1,1.18254492]
[1768878773513,0.15692,3188.4,3187.1,1.18254492]
[1768878773814,0.84977755,3188.3,3187.1,1.18254492]
[1768878774014,0.84977755,3188.2,3187.1,1.18254492]
[1768878774312,0.84977755,3188.1,3187.1,1.18254492]
[1768878774514,0.15692,3188.4,3187.1,1.18254492]
[1768878774715,0.84980316,3188.3,3187.1,1.18254492]
[1768878774916,0.84980316,3188.2,3186.9,3.43160571]
[1768878775217,0.15692,3188.4,3186.9,3.43160571]
[1768878775514,0.849803,3188.3,3186.9,3.43160571]
[1768878775713,0.849803,3188.2,3186.9,3.43160571]
[1768878775909,0.15692,3188.4,3186.9,3.43160571]
[1768878776107,0.84983098,3188.3,3186.9,3.43160571]
[1768878776308,0.84983098,3188.2,3186.9,3.43160571]
[1768878776508,0.84983098,3188.1,3186.9,3.43160571]
[1768878776715,0.15692,3188.4,3186.9,3.43160571]
[1768878777008,0.84986244,3188.3,3186.9,3.43160571]
[1768878777213,0.84986244,3188.2,3186.9,3.43160571]
[1768878777515,0.15692,3188.4,3186.9,3.43160571]
[1768878777721,0.84987933,3188.3,3186.9,3.43160571]
[1768878778015,0.84987933,3188.2,3186.9,3.43160571]
[1768878778205,3.63151607,3188.4,3186.9,3.43160571]
[1768878778408,4.32447742,3188.3,3186.5,3.73348729]
[1768878778604,3.47459607,3188.0,3186.5,3.57647729]
[1768878778906,4.32447742,3187.9,3186.3,0.00398145]
[1768878779106,0.84988135,3187.8,3186.3,0.00398145]
[1768878779715,3.47459607,3187.7,3186.3,0.00398145]
[1768878779910,0.84988135,3187.6,3186.3,0.00398145]
[1768878780511,4.32447742,3187.6,3186.3,0.00398145]
[1768878780712,0.84988135,3187.5,3186.3,0.00398145]
[1768878781422,4.32447742,3187.5,3186.3,0.00398145]
[1768878781614,0.85016624,3187.4,3186.3,0.00398145]
[1768878781812,3.47459607,3187.5,3186.3,0.00398145]
[1768878782012,0.85016696,3187.4,3186.3,0.00398145]
[1768878782314,3.47459607,3187.5,3186.3,0.00398145]
[1768878787413,3.47459607,3187.9,3186.3,3.58045874]
[1768878787617,0.84960543,3187.8,3186.3,3.58045874]
[1768878787822,4.60168237,3188.3,3186.6,1.18213436]
[1768878788116,0.84950881,3188.2,3186.7,3.57647729]
[1768878788311,0.84950881,3188.1,3186.7,3.57647729]
[1768878788511,0.84950881,3188.0,3186.7,3.57647729]
[1768878788712,3.47459607,3188.3,3186.7,3.57647729]
[1768878788922,4.3242084,3188.2,3186.3,3.58045874]
[1768878789117,4.3242084,3188.1,3186.3,3.58045874]
[1768878789318,3.47459607,3187.9,3186.3,3.58045874]
[1768878792126,4.3248467,3187.8,3186.3,3.58045874]
[1768878792329,3.47459607,3187.8,3186.3,3.58045874]
[1768878793219,0.15693,3188.1,3186.5,3.57647729]
[1768878793528,0.85022867,3188.0,3186.5,3.57647729]
[1768878793826,0.15693,3188.1,3186.5,3.57647729]
[1768878794025,0.85020975,3188.0,3186.5,3.57647729]
[1768878794212,0.15693,3188.1,3186.5,3.57647729]
[1768878794415,0.85024965,3188.0,3186.5,3.57647729]
[1768878794620,0.15693,3188.1,3186.5,3.57647729]
[1768878794810,0.85023279,3188.0,3186.5,3.57647729]
[1768878795014,0.15693,3188.1,3186.5,3.57647729]
[1768878795211,0.85023279,3188.0,3186.5,3.57647729]
[1768878795424,0.15693,3188.1,3186.5,3.57647729]
[1768878795725,0.8502575,3188.0,3186.5,3.57647729]
[1768878795928,0.15693,3188.1,3186.5,3.57647729]
[1768878796122,0.8502575,3188.0,3186.5,3.57647729]
[1768878796320,0.8502575,3187.9,3186.5,3.57647729]
[1768878796521,0.15693,3188.1,3186.5,3.57647729]
[1768878796721,0.85028373,3188.0,3186.5,3.57647729]
[1768878796922,0.85028373,3187.9,3186.5,3.57647729]
[1768878797225,0.15693,3188.1,3186.5,3.57647729]
[1768878797527,0.85032206,3188.0,3186.5,3.57647729]
[1768878797726,0.75032206,3187.9,3186.5,3.57647729]
[1768878797929,0.15693,3188.1,3186.5,3.57647729]
[1768878798827,0.15693,3188.1,3186.9,3.57647729]
[1768878805933,5.1694552,3188.6,3186.9,3.57647729]
[1768878805934,0.00318461,3188.6,3186.9,3.57647729]
[1768878807536,0.00318461,3188.6,3187.3,3.39290672]
[1768878812439,0.00318461,3188.6,3187.7,3.39290672]
[1768878812741,0.00318461,3188.6,3187.0,3.39290672]
[1768878818751,1.1270863,3189.3,3187.9,3.39290672]
[1768878818950,1.1270863,3189.3,3187.2,0.15697]
[1768878818951,4.41097575,3189.2,3187.3,3.39290672]
[1768878819157,3.56147486,3189.0,3187.3,5.79290672]
[1768878819459,3.56147486,3188.8,3186.9,3.39290672]
[1768878819663,4.41097575,3188.7,3186.9,3.39290672]
[1768878819957,0.84950089,3188.6,3186.9,3.39290672]
[1768878833269,0.84950089,3188.6,3187.1,3.29647616]
[1768878834871,0.84950089,3188.6,3187.4,1.18188408]
[1768878835171,0.84950089,3188.6,3187.4,4.47836024]
[1768878836370,0.84950089,3188.6,3187.4,3.29647616]
[1768878844875,0.84950089,3188.6,3187.6,3.29647616]
[1768878845073,0.84950089,3188.6,3187.6,4.47836024]
[1768878846580,0.85039975,3188.5,3187.6,4.47836024]
[1768878846764,0.85039975,3188.4,3187.6,4.47836024]
[1768878846969,0.00389259,3188.7,3187.6,4.47836024]
[1768878847169,0.85039975,3188.6,3187.6,4.47836024]
[1768878847369,0.85039975,3188.5,3187.6,4.47836024]
[1768878847570,0.85039975,3188.4,3187.6,4.47836024]
[1768878847770,0.00389259,3188.7,3187.6,4.47836024]
[1768878848070,0.85044699,3188.6,3187.6,4.47836024]
[1768878848269,0.85044699,3188.5,3187.6,4.47836024]
[1768878848478,0.85044699,3188.4,3187.6,4.47836024]
[1768878848679,0.00389259,3188.7,3187.6,3.29647616]
[1768878848880,0.8504924,3188.6,3187.7,1.18188408]
[1768878849076,0.8504924,3188.5,3187.7,1.18188408]
[1768878849277,0.00389259,3188.7,3187.7,4.47836024]
[1768878849478,0.85048914,3188.6,3187.7,4.47836024]
[1768878849668,0.00389259,3188.7,3187.7,4.47836024]
[1768878849868,0.85048388,3188.6,3187.7,4.47836024]
[1768878850077,0.00389259,3188.7,3187.7,4.47836024]
[1768878850281,0.85040137,3188.6,3187.7,4.47836024]
[1768878850475,0.00389259,3188.7,3187.7,4.47836024]
[1768878850782,0.85040142,3188.6,3187.7,4.47836024]
[1768878851083,0.00389259,3188.7,3187.7,4.47836024]
[1768878851275,0.85033795,3188.6,3187.7,4.47836024]
[1768878851469,0.00389259,3188.7,3187.7,4.47836024]
[1768878851674,0.85033795,3188.6,3187.7,4.47836024]
[1768878851874,0.00389259,3188.7,3187.7,4.47836024]
[1768878852175,0.84982336,3188.6,3187.7,4.47836024]
[1768878852373,0.00389259,3188.7,3187.7,4.47836024]
[1768878852578,0.84977778,3188.6,3187.7,4.47836024]
[1768878852774,0.00389259,3188.7,3187.7,4.47836024]
[1768878852970,0.84977787,3188.6,3187.7,4.47836024]
[1768878853174,0.00389259,3188.7,3187.7,4.47836024]
[1768878853374,0.00389259,3188.7,3187.7,3.29647616]
[1768878853375,0.84974634,3188.6,3187.7,3.29647616]
[1768878853674,0.00389259,3188.7,3187.4,1.18188408]
[1768878853874,0.8497469,3188.6,3187.4,1.18188408]
[1768878854084,0.00389259,3188.7,3187.4,4.47836024]
[1768878854279,0.84972599,3188.6,3187.4,4.47836024]
[1768878854481,0.00389259,3188.7,3187.4,4.47836024]
[1768878854788,0.84972599,3188.6,3187.1,1.18188408]
[1768878854981,0.84972599,3188.5,3187.1,4.47836024]
[1768878855281,0.84972599,3188.4,3187.1,4.47836024]
[1768878855474,1.18577667,3188.7,3187.1,4.47836024]
[1768878855675,0.84977521,3188.6,3187.1,4.47836024]
[1768878855874,1.18577667,3188.7,3187.1,4.47836024]
[1768878855875,0.84977521,3188.5,3187.1,4.47836024]
[1768878856081,0.84977521,3188.4,3187.1,4.47836024]
[1768878856376,1.18577667,3188.7,3187.1,4.47836024]
[1768878856682,0.8498014,3188.6,3187.4,1.18188408]
[1768878856885,0.8498014,3188.5,3187.4,1.18188408]
[1768878857081,0.8498014,3188.4,3187.4,4.47836024]
[1768878857391,0.00389259,3188.7,3187.4,4.47836024]
[1768878857585,0.84983046,3188.6,3187.4,4.47836024]
[1768878857786,0.84983046,3188.5,3187.4,4.47836024]
[1768878857977,0.84983046,3188.4,3187.4,4.47836024]
[1768878858179,0.00389259,3188.7,3187.5,3.29647616]